fUSD/lending_fUSD_20251002
["ID","MTS","AMOUNT","RATE_DAILY","PERIOD"]
[388852594,1759425045743,-175.15385972,0.00021917,2]
[388852595,1759425045754,-2122.79,0.00021917,2]
[388852596,1759425045764,-366.44440738,0.00021917,2]
[388852597,1759425045774,-500.0,0.00021917,2]
[388852598,1759425045783,-500.0,0.00021917,2]
[388852599,1759425045793,-500.0,0.00021917,2]
[388852600,1759425045802,-500.0,0.00021917,2]
[388852601,1759425045814,-911.39,0.00021917,2]
[388852602,1759425045824,-274.70638613,0.00021917,2]
[388852603,1759425046698,-238.34361387,0.00021917,2]
[388852604,1759425046708,-264.12678232,0.00021917,2]
[388852605,1759425046719,-338.35992,0.00021917,2]
[388852606,1759425046809,-196.95329768,0.00021917,2]
[388852607,1759425046821,-83.91670232,0.00021917,2]
[388852608,1759425046833,-416.08329768,0.00021917,2]
[388852609,1759425046843,-454.69857315,0.00021917,2]
[388852610,1759425046853,-356.98054711,0.00021917,2]
[388852611,1759425046866,-143.01945289,0.00021917,2]
[388852612,1759425046875,-1714.76,0.00021917,2]
[388852613,1759425046885,-500.0,0.00021917,2]
[388852614,1759425046895,-36.42054711,0.00021917,2]
[388852615,1759425046934,-463.57945289,0.00021917,2]
[388852616,1759425046944,-363.7273244,0.00021917,2]
[388852617,1759425046960,-1165.5726756,0.00021917,2]
[388852618,1759425046970,-500.0,0.00021917,2]
[388852619,1759425046979,-500.0,0.00021917,2]
[388852620,1759425046989,-500.0,0.00021917,2]
[388852621,1759425046999,-500.0,0.00021917,2]
[388852622,1759425047009,-945.34,0.00021917,2]
[388852623,1759425047019,-501.7549497,0.00021917,2]
[388852624,1759425047028,-500.0,0.00021917,2]
[388852625,1759425047038,-665.66,0.00021917,2]
[388852626,1759425047048,-500.0,0.00021917,2]
[388852627,1759425047057,-500.0,0.00021917,2]
[388852628,1759425047071,-987.02,0.00021917,2]
[388852629,1759425047081,-1494.75,0.00021917,2]
[388852630,1759425047091,-500.0,0.00021917,2]
[388852631,1759425047101,-500.0,0.00021917,2]
[388852632,1759425047111,-500.0,0.00021917,2]
[388852633,1759425047121,-502.26,0.00021917,2]
[388852634,1759425047131,-500.0,0.00021917,2]
[388852635,1759425047142,-500.0,0.00021917,2]
[388852636,1759425047151,-500.0,0.00021917,2]
[388852637,1759425047161,-501.51647993,0.00021917,2]
[388852638,1759425047173,-634.34,0.00021917,2]
[388852639,1759425047183,-500.0,0.00021917,2]
[388852640,1759425047193,-501.70345946,0.00021917,2]
[388852641,1759425047203,-1641.11,0.00021917,2]
[388852642,1759425047212,-1222.51,0.00021917,2]
[388852643,1759425047221,-500.0,0.00021917,2]
[388852644,1759425047231,-500.0,0.00021917,2]
[388852645,1759425047240,-500.0,0.00021917,2]
[388852646,1759425047250,-1404.83,0.00021917,2]
[388852647,1759425047259,-500.0,0.00021917,2]
[388852648,1759425047269,-500.0,0.00021917,2]
[388852649,1759425047278,-500.0,0.00021917,2]
[388852650,1759425047290,-405.63243531,0.00021917,2]
[388852651,1759425047387,-94.36756469,0.00021917,2]
[388852652,1759425047398,-500.70045352,0.00021917,2]
[388852653,1759425047408,-423.6579233,0.00021917,2]
[388852654,1759425047425,-1718.29547598,0.00021917,2]
[388852665,1759425713203,490.08,9.736e-05,2]
[388852666,1759425713420,490.08,0.00010249,2]
[388852667,1759425713655,490.08,0.00010761,2]
[388852668,1759425713883,490.08,0.00011274,2]
[388852669,1759425714079,490.08,0.00011786,2]
[388852670,1759425714296,490.08,0.00012298,2]
[388852671,1759425715482,490.08,0.00012811,2]
[388852672,1759425715611,490.08,0.00013323,2]
[388852673,1759425715788,490.08,0.00013836,2]
[388852674,1759425715882,490.08,0.00014348,2]
[388852675,1759425715948,192.21574143,0.00014861,2]
[388852676,1759425715977,297.86425857,0.00014861,2]
[388852677,1759425716090,490.08,0.00015373,2]
[388852678,1759425716284,490.08,0.00015885,2]
[388852679,1759425716442,490.08,0.00016398,2]
[388852681,1759426039567,500.0,0.000161,5]
[388852682,1759426041717,1000.0,0.000162,5]
[388852683,1759426043791,300.0,0.000163,5]
[388852684,1759426043821,1200.0,0.000163,5]
[388852685,1759426046132,2000.0,0.000164,5]
[388852686,1759426049108,2500.0,0.000165,6]
[388852687,1759426050897,500.0,0.000166,6]
[388852691,1759426152482,-195.06812069,0.00016616,2]
[388852692,1759426154504,-132.67187931,0.00016616,2]
[388852693,1759426161088,-500.0,0.000167,6]
[388852694,1759426161110,-500.0,0.000168,6]
[388852695,1759426161130,-2000.0,0.00016858,2]
[388852696,1759426161151,-500.0,0.000169,6]
[388852697,1759426161172,-160.17617172,0.000169,2]
[388852698,1759426161193,-939.44216628,0.000169,2]
[388852717,1759426231995,-252.11824185,0.00016899,2]
[388852719,1759426232012,-47.88175815,0.00016899,2]
[388852721,1759426232022,-1200.0,0.00016899,2]
[388852724,1759426232032,-300.0,0.00016899,2]
[388852727,1759426232042,-157.0,0.00016899,2]
[388852730,1759426232052,-43.0,0.000169,2]
[388852733,1759426232149,-806.941188,0.000169,2]
[388852734,1759426232159,-10198.51547936,0.000169,2]
[388852735,1759426232169,-417.20720313,0.000169,2]
[388852736,1759426232180,-18534.83612951,0.000169,2]
[388852737,1759426232469,-42806.75045821,0.000169,2]
[388852738,1759426232479,-361.1857745,0.000169,2]
[388852739,1759426232489,-496.54797126,0.000169,2]
[388852741,1759426232499,-1639.14300976,0.000169,2]
[388852743,1759426232508,-5396.39132586,0.000169,2]
[388852747,1759426232538,-1956.81488605,0.000169,2]
[388852749,1759426232548,-1663.1224851,0.000169,2]
[388852751,1759426232558,-490.08,0.0001691,2]
[388852753,1759426232568,-2000.0,0.00016919,2]
[388852755,1759426232578,-582.05101685,0.00016919,2]
[388852757,1759426232588,-500.0,0.00016973,2]
[388852759,1759426232598,-500.0,0.00016973,2]
[388852761,1759426232607,-500.0,0.00016973,2]
[388852763,1759426232617,-500.0,0.00016973,2]
[388852765,1759426232628,-500.0,0.00016973,2]
[388852767,1759426232638,-500.0,0.00016973,2]
[388852769,1759426232648,-500.0,0.00016973,2]
[388852771,1759426232658,-500.0,0.00016973,2]
[388852773,1759426232669,-500.0,0.00016973,2]
[388852775,1759426232679,-500.0,0.00016973,2]
[388852777,1759426232688,-500.0,0.00016973,2]
[388852779,1759426232699,-215.08852706,0.0001699,2]
[388852781,1759426232709,-497.10039836,0.00016998,2]
[388852783,1759426232719,-177.21661432,0.00016998,2]
[388852785,1759426232729,-424.1798078,0.00016998,2]
[388852787,1759426232739,-500.0,0.00016998,2]
[388852789,1759426232748,-533.29948609,0.00016998,2]
[388852791,1759426232758,-31304.5388588,0.00016999,2]
[388852794,1759426232780,-608.3000124,0.00016999,2]
[388852899,1759426237865,-324.31681417,0.00016899,2]
[388852900,1759426237877,-175.68318583,0.00016899,2]
[388852901,1759426237887,-500.0,0.00016899,2]
[388852902,1759426237897,-500.0,0.00016899,2]
[388852903,1759426237906,-500.0,0.00016899,2]
[388852904,1759426237916,-177.35582704,0.00016899,2]
[388852905,1759426237925,-500.0,0.00016899,2]
[388852906,1759426237935,-225.29599373,0.00016899,2]
[388852907,1759426237948,-274.70400627,0.00016899,2]
[388852908,1759426237958,-500.0,0.00016899,2]
[388852909,1759426237967,-500.0,0.00016899,2]
[388852910,1759426237977,-500.0,0.00016899,2]
[388852911,1759426237987,-500.0,0.00016899,2]
[388852912,1759426237996,-4944012.30646883,0.00016999,2]
[388852913,1759426238006,-16127871.91379402,0.00017,2]
[388852914,1759426238016,-446053.19122245,0.00017,2]
[388852915,1759426238026,-250.0,0.00017,2]
[388852916,1759426238036,-336.75592871,0.00017322,7]
[388852917,1759426238046,-490.08,0.00017423,2]
[388852918,1759426238056,-609.19191373,0.00017521,2]
[388852919,1759426238066,-221.86664329,0.00017521,2]
[388852920,1759426238076,-1000.0,0.00017521,2]
[388852921,1759426238086,-1009.28250638,0.00017521,2]
[388852922,1759426238096,-1003.47512392,0.00017521,2]
[388852923,1759426238106,-1000.0,0.00017521,2]
[388852924,1759426238116,-616.92723909,0.00017521,2]
[388852925,1759426238128,-1000.0,0.00017521,2]
[388852926,1759426238139,-1014.7959735,0.00017521,2]
[388852927,1759426238149,-284.24314817,0.00017521,2]
[388852928,1759426238159,-1000.0,0.00017521,2]
[388852929,1759426238169,-490.08,0.00017935,2]
[388852930,1759426238180,-635.18631323,0.00018068,2]
[388852931,1759426238190,-447.58018281,0.00018068,2]
[388852932,1759426238200,-1500.0,0.00018068,2]
[388852933,1759426238209,-1500.0,0.00018068,2]
[388852934,1759426238220,-300.0,0.0001837,2]
[388852935,1759426238230,-250.0,0.0001837,2]
[388852936,1759426238240,-207.65814267,0.0001837,2]
[388852937,1759426238250,-490.08,0.00018448,2]
[388852938,1759426238260,-420.0,0.00018459,2]
[388852939,1759426238270,-300.0,0.00018459,2]
[388852940,1759426238280,-195.0,0.00018497,2]
[388852941,1759426238290,-2000.0,0.00018497,2]
[388852942,1759426238301,-1620.09420084,0.000185,2]
[388852943,1759426238312,-4650.79,0.00018518,2]
[388852944,1759426238322,-1680.0,0.00018551,2]
[388852945,1759426238333,-192.21574143,0.00018601,2]
[388852946,1759426238343,-502.22705372,0.00018601,2]
[388852947,1759426238354,-2000.0,0.00018616,2]
[388852948,1759426238364,-920.8102741,0.00018616,2]
[388852949,1759426238374,-500.0,0.00018762,2]
[388852950,1759426238384,-151.0,0.00018789,2]
[388852951,1759426238394,-151.0,0.00018789,2]
[388852952,1759426238405,-151.0,0.00018789,2]
[388852953,1759426238416,-151.0,0.00018789,2]
[388852954,1759426238426,-151.0,0.00018789,2]
[388852955,1759426238438,-151.0,0.00018789,2]
[388852956,1759426238449,-151.0,0.00018789,2]
[388852957,1759426238459,-151.0,0.00018789,2]
[388852958,1759426238470,-151.0,0.00018789,2]
[388852959,1759426238480,-151.0,0.00018789,2]
[388852960,1759426238491,-151.0,0.00018789,2]
[388852961,1759426238502,-200.0,0.00018789,2]
[388852962,1759426238512,-151.0,0.00018789,2]
[388852963,1759426238523,-151.0,0.00018789,2]
[388852964,1759426238533,-200.0,0.00018789,2]
[388852965,1759426238544,-500.0,0.00018789,2]
[388852966,1759426238555,-315.60292304,0.00018789,2]
[388852967,1759426238565,-1362.65,0.00018789,2]
[388852968,1759426238575,-160.0,0.000188,2]
[388852969,1759426238586,-151.49,0.000188,2]
[388852970,1759426238597,-151.49,0.000188,2]
[388852971,1759426238608,-151.49,0.000188,2]
[388852972,1759426238618,-8027.94,0.00018841,2]
[388852973,1759426238629,-490.08,0.0001896,2]
[388852974,1759426238639,-18288.60554387,0.00019,2]
[388852975,1759426238650,-2336.70053453,0.00019,2]
[388852976,1759426238659,-2336.70053453,0.00019,2]
[388852977,1759426238670,-307.74,0.00019027,2]
[388852978,1759426238680,-1362.65,0.00019063,2]
[388852979,1759426238690,-2500.0,0.00019164,2]
[388852980,1759426238700,-151.0,0.00019178,2]
[388852981,1759426238711,-1000.0,0.00019291,2]
[388852982,1759426238721,-19229.75718056,0.00019304,2]
[388852983,1759426238732,-370.49393606,0.00019334,2]
[388852984,1759426238743,-1362.65,0.00019337,2]
[388852985,1759426238753,-1639.14300976,0.00019359,2]
[388852986,1759426238765,-7353.20621189,0.00019359,2]
[388852987,1759426238775,-417.20720311,0.00019373,3]
[388852988,1759426238787,-361.18577449,0.0001938,2]
[388852989,1759426238798,-496.54797126,0.0001938,2]
[388852990,1759426239286,-490.08,0.00019473,2]
[388852991,1759426239297,-1000.0,0.00019558,2]
[388852992,1759426239306,-1362.65,0.00019611,2]
[388852993,1759426239316,-150.0,0.00019701,2]
[388852994,1759426239327,-150.0,0.00019701,2]
[388852995,1759426239337,-150.0,0.00019701,2]
[388852996,1759426239346,-150.0,0.00019701,2]
[388852997,1759426239357,-150.0,0.00019701,2]
[388852998,1759426239367,-150.0,0.00019701,2]
[388852999,1759426239377,-150.0,0.00019701,2]
[388853000,1759426239387,-150.0,0.00019701,2]
[388853001,1759426239397,-250.0,0.00019708,2]
[388853002,1759426239409,-153.03240117,0.00019725,2]
[388853003,1759426239419,-156.587,0.00019726,2]
[388853004,1759426239430,-2030.8,0.00019799,2]
[388853005,1759426239439,-1362.65,0.00019885,2]
[388853006,1759426239450,-428.5,0.000199,2]
[388853007,1759426239460,-428.31,0.000199,2]
[388853008,1759426239470,-302.44,0.000199,2]
[388853009,1759426239480,-443.67921354,0.0002,2]
[388853010,1759426239490,-150.0,0.0002,2]
[388853011,1759426239499,-500.0,0.0002,2]
[388853012,1759426239509,-4000.0,0.0002,4]
[388853013,1759426239519,-2500.0,0.00020004,2]
[388853014,1759426239528,-5000.0,0.00020005,2]
[388853015,1759426239537,-5000.0,0.00020009,2]
[388853016,1759426239547,-1823.25,0.00020022,2]
[388853017,1759426239557,-201.74425963,0.00020071,2]
[388853018,1759426239568,-3635.39446931,0.00020093,2]
[388853019,1759426239578,-244.53849652,0.00020141,2]
[388853020,1759426239588,-1362.65,0.00020159,2]
[388853021,1759426239598,-587.0,0.00020164,2]
[388853022,1759426239607,-443.67921354,0.000202,2]
[388853023,1759426239616,-1835.7,0.00020203,2]
[388853024,1759426239626,-491.39,0.00020203,2]
[388853025,1759426239635,-287.33273341,0.00020212,2]
[388853026,1759426239645,-666.0,0.0002022,3]
[388853027,1759426239655,-162.380719,0.00020274,2]
[388853028,1759426239665,-2324.76,0.00020278,2]
[388853029,1759426239675,-330.1269703,0.00020283,2]
[388853030,1759426239684,-176.29,0.00020287,2]
[388853031,1759426239694,-253.73565643,0.00020324,2]
[388853032,1759426239704,-23996.67,0.00020344,2]
[388853033,1759426239714,-372.92120719,0.00020354,2]
[388853034,1759426239724,-2351.0,0.00020365,2]
[388853035,1759426239734,-443.67921354,0.000204,2]
[388853036,1759426239743,-415.71544408,0.00020424,2]
[388853037,1759426239753,-1362.65,0.00020433,2]
[388853038,1759426239763,-2500.0,0.00020445,2]
[388853039,1759426239772,-371.72842821,0.00020472,2]
[388853040,1759426239789,-458.50968097,0.00020495,2]
[388853041,1759426239802,-500.0,0.000205,2]
[388853043,1759426239812,-16469.61658447,0.00020555,2]
[388853044,1759426239823,-501.30391786,0.00020566,2]
[388853045,1759426239837,-2500.0,0.00020568,2]
[388853046,1759426239847,-5348.80634064,0.00020582,2]
[388853047,1759426239857,-443.67921354,0.000206,2]
[388853048,1759426239871,-544.09815475,0.00020636,2]
[388853049,1759426239882,-22340.40134897,0.000207,2]
[388853051,1759426239892,-1362.65,0.00020707,2]
[388853053,1759426239902,-586.89239164,0.00020707,2]
[388853055,1759426239913,-5000.0,0.00020723,2]
[388853057,1759426239923,-4936.0,0.00020762,2]
[388853059,1759426239933,-629.68662853,0.00020778,2]
[388853061,1759426239943,-443.67921354,0.000208,2]
[388853063,1759426239953,-672.48086542,0.00020849,2]
[388853065,1759426239963,-4259.0650725,0.00020865,2]
[388853066,1759426239974,-270.87,0.000209,2]
[388853067,1759426239985,-18982.11,0.000209,2]
[388853068,1759426239995,-18982.11,0.000209,2]
[388853069,1759426240006,-18982.11,0.000209,2]
[388853070,1759426240016,-715.27510231,0.00020919,2]
[388853071,1759426240027,-2500.0,0.00020948,2]
[388853072,1759426240037,-5000.0,0.00020948,2]
[388853073,1759426240047,-322.6107,0.00020965,2]
[388853074,1759426240056,-500.0,0.00020965,2]
[388853075,1759426240066,-151.0,0.00020965,2]
[388853076,1759426240076,-500.0,0.00020965,2]
[388853077,1759426240086,-601.3376128,0.00020965,2]
[388853078,1759426240097,-500.0,0.00020965,2]
[388853079,1759426240107,-500.0,0.00020965,2]
[388853080,1759426240116,-500.0,0.00020965,2]
[388853081,1759426240127,-500.0,0.00020965,2]
[388853082,1759426240137,-500.0,0.00020965,2]
[388853083,1759426240148,-607.15866154,0.00020965,2]
[388853084,1759426240158,-578.20924308,0.00020965,2]
[388853085,1759426240169,-248.71531821,0.00020965,2]
[388853086,1759426240179,-8565.75555911,0.00020965,2]
[388853087,1759426240189,-4259.06507241,0.00020971,2]
[388853088,1759426240199,-1362.65,0.00020981,2]
[388853089,1759426240210,-758.06933919,0.0002099,2]
[388853090,1759426240220,-190200.15441563,0.00021,2]
[388853091,1759426240230,-20000.0,0.00021,2]
[388853092,1759426240240,-500.0,0.00021,2]
[388853093,1759426240250,-8882.6885148,0.0002102,2]
[388853094,1759426240261,-362.38828895,0.00021046,2]
[388853095,1759426240271,-9211.34798985,0.00021075,2]
[388853096,1759426240282,-4259.06507241,0.00021077,2]
[388853097,1759426240293,-500.0,0.00021095,2]
[388853098,1759426240304,-151.75,0.00021096,2]
[388853099,1759426240314,-18982.11,0.000211,2]
[388853100,1759426240324,-9552.16786547,0.0002113,2]
[388853101,1759426240335,-403.97383031,0.00021172,2]
[388853102,1759426240351,-4259.06507241,0.00021182,2]
[388853103,1759426240361,-1061.05668482,0.00021182,2]
[388853104,1759426240371,-9905.5980765,0.00021185,2]
[388853105,1759426240390,-491.39,0.00021213,2]
[388853106,1759426240402,-10272.10520533,0.0002124,2]
[388853107,1759426240420,-1362.65,0.00021255,2]
[388853108,1759426240436,-153.96,0.00021277,4]
[388853109,1759426240447,-4259.06507241,0.00021288,2]
[388853110,1759426240457,-10652.17309792,0.00021295,2]
[388853111,1759426240468,-445.55937166,0.00021298,2]
[388853112,1759426240478,-150.04,0.00021324,4]
[388853113,1759426240488,-11046.30350255,0.0002135,2]
[388853114,1759426240498,-150.19,0.00021352,4]
[388853115,1759426240508,-4259.06507241,0.00021394,2]
[388853116,1759426240520,-11455.01673214,0.00021405,2]
[388853117,1759426240530,-487.14491302,0.00021424,2]
[388853118,1759426240540,-4000.0,0.00021429,4]
[388853119,1759426240550,-179.48,0.00021459,2]
[388853120,1759426240560,-11878.85235123,0.0002146,2]
[388853121,1759426240569,-4259.06507241,0.000215,2]
[388853122,1759426240579,-198096.69284933,0.000215,2]
[388853123,1759426240589,-500.0,0.000215,2]
[388853124,1759426240599,-18982.11,0.000215,2]
[388853125,1759426240609,-12318.36988823,0.00021515,2]
[388853126,1759426240620,-1362.65,0.00021528,2]
[388853127,1759426240630,-226.96715185,0.00021528,2]
[388853128,1759426240640,-31321.1014993,0.00021535,2]
[388853129,1759426240650,-9572.20832596,0.00021547,2]
[388853130,1759426240660,-528.73045437,0.00021551,2]
[388853131,1759426240670,-226.96715185,0.00021555,2]
[388853132,1759426240679,-17527.93655844,0.00021555,2]
[388853133,1759426240689,-17527.93655844,0.00021557,2]
[388853134,1759426240699,-12359.42639917,0.00021558,2]
[388853135,1759426240708,-9572.20832596,0.00021558,2]
[388853136,1759426240719,-176.85944747,0.0002156,19]
[388853137,1759426240730,-31321.1014993,0.00021567,2]
[388853138,1759426240739,-17527.93655844,0.00021568,2]
[388853139,1759426240749,-2392.49518737,0.0002157,2]
[388853140,1759426240758,-31321.1014993,0.00021586,2]
[388853141,1759426240769,-17527.93655844,0.00021588,2]
[388853142,1759426240779,-9572.20832596,0.00021589,2]
[388853143,1759426240800,-9699.18749005,0.00021591,2]
[388853144,1759426240820,-226.96715185,0.00021595,2]
[388853145,1759426240832,-49437.70559664,0.00021601,2]
[388853146,1759426240842,-4259.06507241,0.00021605,2]
[388853147,1759426240852,-9699.18749005,0.00021614,2]
[388853148,1759426240862,-9699.18749005,0.00021614,2]
[388853149,1759426240872,-12359.42639917,0.00021615,2]
[388853150,1759426240882,-1000.0,0.00021616,2]
[388853151,1759426240891,-226.96715185,0.00021622,2]
[388853152,1759426240902,-150.24,0.00021627,4]
[388853153,1759426240911,-49437.70559664,0.0002163,2]
[388853154,1759426240921,-344.56368527,0.00021639,2]
[388853155,1759426240969,-1286.73195426,0.00021639,2]
[388853156,1759426240981,-1305.90493124,0.00021639,2]
[388853157,1759426240992,-339.8309581,0.00021639,2]
[388853158,1759426241799,-3483.29536372,0.00021639,2]
[388853159,1759426241821,-3086.80210793,0.00021639,2]
[388853160,1759426241846,-2512.29739865,0.00021639,2]
[388853161,1759426241858,-8806.70260135,0.00021649,2]
[388853166,1759426243041,-500.0,0.00016899,2]
[388853167,1759426243051,-500.0,0.00016899,2]
[388853168,1759426243061,-596.20244332,0.00016899,2]
[388853169,1759426243072,-2673.0058551,0.000194,5]
[388853170,1759426243193,-2839.9941449,0.000194,5]
[388853171,1759426243203,-22514.39889795,0.00021649,2]
[388853172,1759426243212,-4605.60695714,0.00021652,2]
[388853173,1759426243248,-3003.5787882,0.00021652,2]
[388853176,1759426245950,-10401.42156757,0.00021652,2]
[388853177,1759426245962,-1422.86816618,0.00021652,2]
[388853178,1759426245973,-5902.13238093,0.00021652,2]
[388853179,1759426245985,-869.43771164,0.00021652,2]
[388853180,1759426246064,-5116.05592764,0.00021652,2]
[388853181,1759426246074,-9572.20832596,0.00021653,2]
[388853182,1759426246084,-17527.93655844,0.00021657,2]
[388853183,1759426246093,-12359.42639917,0.00021664,2]
[388853184,1759426246103,-49437.70559664,0.00021667,2]
[388853185,1759426246112,-49437.70559664,0.00021667,2]
[388853186,1759426246122,-9572.20832596,0.00021668,2]
[388853187,1759426246132,-226.96715185,0.00021674,2]
[388853188,1759426246142,-570.31599573,0.00021677,2]
[388853189,1759426246152,-9699.18749005,0.00021689,2]
[388853190,1759426246161,-49437.70559664,0.00021693,2]
[388853191,1759426246171,-9699.18749005,0.00021694,2]
[388853192,1759426246180,-12359.42639917,0.00021695,2]
[388853193,1759426246190,-4259.06507241,0.00021711,2]
[388853194,1759426246200,-160.17617172,0.00021717,2]
[388853195,1759426246210,-1202.90615625,0.00021791,2]
[388853196,1759426246220,-1000.0,0.000218,3]
[388853197,1759426246230,-1000.0,0.000218,3]
[388853198,1759426246239,-150.0,0.000218,2]
[388853199,1759426246249,-1362.65,0.00021802,2]
[388853200,1759426246259,-611.90153708,0.00021803,2]
[388853201,1759426246269,-5000.0,0.00021817,2]
[388853202,1759426246278,-554.04472965,0.00021817,2]
[388853203,1759426246288,-178.3108285,0.00021817,2]
[388853204,1759426246297,-160.58327585,0.00021817,2]
[388853205,1759426246306,-4259.06507241,0.00021817,2]
[388853206,1759426246316,-525.75220993,0.00021817,2]
[388853208,1759426246324,-1639.14300976,0.00021817,2]
[388853210,1759426246333,-7353.20621189,0.00021817,2]
[388853212,1759426246343,-500.0,0.00021818,2]
[388853214,1759426246352,-150.0,0.00021818,2]
[388853216,1759426246362,-736.0,0.00021818,2]
[388853218,1759426246372,-150.0,0.00021818,2]
[388853220,1759426246382,-500.0,0.00021818,2]
[388853222,1759426246393,-150.0,0.00021818,2]
[388853224,1759426246403,-150.0,0.00021818,2]
[388853226,1759426246412,-150.0,0.00021818,2]
[388853228,1759426246422,-150.0,0.00021818,2]
[388853230,1759426246432,-150.0,0.00021818,2]
[388853232,1759426246442,-150.0,0.00021818,2]
[388853234,1759426246451,-500.0,0.00021818,2]
[388853235,1759426246461,-150.0,0.00021818,2]
[388853236,1759426246471,-150.0,0.00021818,2]
[388853237,1759426246480,-150.0,0.00021818,2]
[388853238,1759426246490,-500.0,0.00021818,2]
[388853239,1759426246500,-150.0,0.00021818,2]
[388853240,1759426246510,-500.0,0.00021818,2]
[388853241,1759426246519,-150.0,0.00021818,2]
[388853242,1759426246529,-500.0,0.00021818,2]
[388853243,1759426246539,-150.0,0.00021818,2]
[388853244,1759426246548,-150.0,0.00021818,2]
[388853245,1759426246557,-293.05852314,0.00021818,2]
[388853246,1759426246566,-500.0,0.00021818,2]
[388853247,1759426246577,-150.0,0.00021818,2]
[388853248,1759426246587,-150.0,0.00021818,2]
[388853249,1759426246597,-150.0,0.00021818,2]
[388853250,1759426246606,-150.0,0.00021818,2]
[388853251,1759426246615,-500.0,0.00021818,2]
[388853252,1759426246625,-150.0,0.00021818,2]
[388853253,1759426246635,-500.0,0.00021818,2]
[388853254,1759426246644,-500.0,0.00021818,2]
[388853255,1759426246654,-150.0,0.00021818,2]
[388853256,1759426246663,-150.0,0.00021818,2]
[388853257,1759426246672,-150.0,0.00021818,2]
[388853258,1759426246682,-500.0,0.00021818,2]
[388853259,1759426246692,-778.0,0.00021818,2]
[388853260,1759426246702,-684.33771012,0.00021833,2]
[388853261,1759426246711,-417.20720311,0.00021845,4]
[388853262,1759426246720,-361.18577449,0.0002186,2]
[388853263,1759426246729,-496.54797126,0.0002186,2]
[388853264,1759426246739,-2260.765,0.00021872,2]
[388853265,1759426246748,-150.0,0.0002189,4]
[388853266,1759426246757,-150.0,0.0002189,4]
[388853267,1759426246767,-170.99563038,0.0002189,4]
[388853268,1759426246777,-1000.0,0.000219,2]
[388853269,1759426246789,-373.83,0.000219,7]
[388853270,1759426246799,-1000.0,0.000219,2]
[388853271,1759426246808,-1000.0,0.000219,2]
[388853272,1759426246817,-1000.0,0.000219,2]
[388853273,1759426246827,-19135.04256238,0.00021906,3]
[388853274,1759426246837,-151.0,0.00021914,2]
[388853275,1759426246847,-999.99,0.00021916,2]
[388853276,1759426246856,-1000.0,0.00021916,2]
[388853277,1759426246871,-1000.0,0.00021916,2]
[388853278,1759426246881,-1000.0,0.00021916,2]
[388853279,1759426246891,-1000.0,0.00021916,2]
[388853280,1759426246901,-1000.0,0.00021916,2]
[388853281,1759426246911,-1000.0,0.00021916,2]
[388853282,1759426246920,-1000.0,0.00021916,2]
[388853283,1759426246929,-830.24,0.00021916,2]
[388853284,1759426246939,-500.0,0.00021916,2]
[388853285,1759426246948,-500.0,0.00021916,2]
[388853286,1759426246958,-317.67902567,0.00021917,2]
[388853287,1759426246968,-110934.93513691,0.00021917,2]
[388853288,1759426246977,-1303.67,0.00021917,2]
[388853289,1759426246987,-1331.98,0.00021917,2]
[388853290,1759426246996,-500.0,0.00021917,2]
[388853291,1759426247007,-678.64,0.00021917,2]
[388853292,1759426247018,-500.0,0.00021917,2]
[388853293,1759426247027,-500.0,0.00021917,2]
[388853294,1759426247036,-500.0,0.00021917,2]
[388853295,1759426247047,-500.0,0.00021917,2]
[388853296,1759426247056,-500.0,0.00021917,2]
[388853297,1759426247065,-500.0,0.00021917,2]